bitfinex-derivatives/quotes_ETHF0:USTF0_20250205
["timestamp","ask_amount","ask_price","bid_price","bid_amount"]
[1738771846669,3.2078,2765.5,2764.9,1.39676491]
[1738771846959,3.2078,2765.5,2765.2,0.67324848]
[1738771847167,2.55679113,2765.5,2765.3,1.39676491]
[1738771847470,2.55679113,2765.5,2765.4,1.39676491]
[1738771847764,3.2078,2765.8,2765.4,1.39676491]
[1738771847966,0.72296,2765.7,2765.5,0.72351643]
[1738771848169,0.72296,2765.7,2765.6,1.48791911]
[1738771848466,5.0,2765.7,2765.1,0.00543331]
[1738771848671,7.3087934,2765.2,2765.1,0.00543331]
[1738771849161,12.3087934,2765.2,2765.1,0.00543331]
[1738771849364,13.0168934,2765.2,2765.1,0.00543331]
[1738771849963,13.0168934,2765.2,2763.8,0.6663]
[1738771849964,12.2938034,2765.2,2763.8,0.6663]
[1738771850171,3.2078,2764.4,2763.8,0.6663]
[1738771850664,3.2078,2764.4,2764.0,0.67324848]
[1738771850859,6.5857034,2764.4,2763.9,0.67324848]
[1738771851067,6.5857034,2764.4,2763.6,3.2078]
[1738771851267,0.72341,2764.0,2763.9,0.00543331]
[1738771851665,3.2078,2764.1,2763.9,0.00543331]
[1738771851864,3.2078,2764.0,2763.9,0.00543331]
[1738771852368,8.9312,2764.0,2763.9,0.00543331]
[1738771852571,0.72355,2763.5,2762.4,2.25598882]
[1738771852866,3.2078,2763.2,2762.8,0.67324848]
[1738771853166,0.7238,2762.5,2761.9,2.29588882]
[1738771853362,3.2078,2762.3,2761.9,2.29588882]
[1738771853565,0.72387,2762.2,2761.9,0.67324848]
[1738771853965,3.2078,2762.0,2761.9,0.67324848]
[1738771854264,3.2078,2762.0,2761.8,0.00543331]
[1738771854465,0.72398,2761.8,2761.3,1.3689]
[1738771854667,3.3779034,2762.0,2761.6,0.67324848]
[1738771854969,0.72397,2761.9,2761.6,0.67324848]
[1738771855169,3.2078,2761.7,2761.6,0.67324848]
[1738771857569,3.2078,2762.0,2761.6,0.67324848]
[1738771857767,3.2078,2762.0,2761.8,0.67324848]
[1738771858469,3.2078,2762.0,2761.9,1.38544811]
[1738771859174,0.72388,2762.2,2761.9,1.38545744]
[1738771859371,0.72391,2762.1,2762.0,0.71220896]
[1738771859584,3.93171,2762.1,2762.0,0.71220896]
[1738771859866,8.93171,2762.1,2761.4,0.00543331]
[1738771860070,3.2078,2761.5,2760.8,1.4157]
[1738771860276,3.93186,2761.5,2761.4,0.67324848]
[1738771860578,3.93186,2761.5,2761.4,1.10986516]
[1738771860774,10.0138,2761.5,2760.0,3.2078]
[1738771860968,3.2078,2760.5,2760.4,0.32973017]
[1738771861173,3.2078,2761.1,2760.9,0.32973017]
[1738771861478,0.00543331,2761.3,2761.2,0.32973017]
[1738771861776,3.38333671,2761.3,2760.9,0.32973017]
[1738771861976,3.38333671,2761.3,2761.0,0.32973017]
[1738771862274,0.00543331,2761.3,2761.2,0.32973017]
[1738771862870,0.72956331,2761.3,2760.5,0.00543331]
[1738771863068,0.00543331,2761.3,2761.2,0.32973017]
[1738771863477,0.00543331,2761.3,2761.2,0.88560518]
[1738771863874,6.5857034,2762.9,2761.2,11.60237773]
[1738771864075,3.2078,2762.9,2762.7,0.32973017]
[1738771864271,3.2078,2762.9,2762.8,0.55588862]
[1738771864474,7.3093934,2762.9,2762.8,0.26002088]
[1738771864778,0.72376,2762.7,2761.8,3.2078]
[1738771864976,3.2078,2762.1,2761.9,0.32973017]
[1738771865179,0.72396,2761.9,2761.8,0.32973017]
[1738771865377,3.2078,2762.1,2761.8,0.33516348]
[1738771865579,3.2078,2762.4,2761.9,0.32973017]
[1738771866075,3.2078,2762.4,2762.0,0.32973017]
[1738771866282,3.2078,2762.1,2761.8,0.33516348]
[1738771866479,6.5857034,2762.1,2760.5,1.58429346]
[1738771866778,0.72427,2760.7,2760.1,3.2078]
[1738771866976,3.2078,2760.7,2760.1,3.2078]
[1738771867379,0.72426,2760.8,2760.1,3.2078]
[1738771867575,2.5392,2761.0,2760.1,3.2078]
[1738771867780,0.00543331,2760.7,2760.1,3.21323331]
[1738771868882,3.3779034,2760.5,2760.1,0.00543331]
[1738771869077,3.2078,2760.3,2759.5,3.2078]
[1738771869280,0.72441,2760.2,2759.5,3.2078]
[1738771869587,3.21323331,2760.7,2759.5,3.2078]
[1738771869784,3.21323331,2760.7,2759.8,3.2078]
[1738771869785,0.00543331,2760.7,2759.8,3.2078]
[1738771869986,0.00543331,2760.7,2759.9,1.26791798]
[1738771870181,3.2078,2760.2,2760.0,0.00543331]
[1738771870486,4.1023234,2760.1,2760.0,0.00543331]
[1738771870682,3.3779034,2760.1,2759.1,1.3778]
[1738771870882,3.2078,2759.5,2758.5,1.26853965]
[1738771871188,3.2078,2758.8,2758.3,0.7323]
[1738771871489,0.72475,2758.9,2758.3,0.7323]
[1738771871490,3.2078,2758.5,2758.3,0.7323]
[1738771871681,3.2078,2758.5,2757.9,3.2078]
[1738771871884,0.00543331,2758.7,2758.1,0.00362218]
[1738771872281,3.2078,2758.3,2758.1,0.00362218]
[1738771872483,0.72492,2758.2,2758.1,0.00362218]
[1738771872982,3.2078,2758.3,2758.1,0.43260869]
[1738771873188,3.2078,2758.3,2758.2,0.4289791]
[1738771873586,3.2078,2758.6,2758.2,0.4289791]
[1738771873885,3.2078,2758.6,2758.3,0.4289791]
[1738771874190,3.2078,2758.6,2758.4,0.4289791]
[1738771874388,3.3779034,2758.5,2758.1,0.00362218]
[1738771874692,3.2078,2758.2,2758.1,0.00362218]
[1738771874894,3.2078,2758.2,2758.1,0.4317925]
[1738771875094,3.2078,2758.2,2758.1,0.00362218]
[1738771875294,3.2078,2758.2,2758.1,0.43133453]
[1738771875493,0.72508,2757.6,2757.5,7.16470742]
[1738771875697,5.0318,2757.6,2757.5,7.16470742]
[1738771876495,3.2078,2757.9,2757.5,7.59232148]
[1738771876696,3.2078,2757.9,2757.6,0.42761406]
[1738771876899,3.2078,2757.9,2757.7,0.42761406]
[1738771877197,3.2078,2757.9,2756.7,0.7059]
[1738771877393,3.2078,2757.2,2756.8,0.97493576]
[1738771877586,6.5857034,2756.9,2755.4,3.2078]
[1738771877891,3.2078,2756.8,2756.1,0.97623412]
[1738771878091,0.00543331,2756.7,2756.2,4.18403412]
[1738771878296,3.2078,2757.2,2756.5,3.2078]
[1738771878497,3.2078,2757.2,2756.6,0.97623412]
[1738771878694,6.5857034,2756.9,2756.7,0.42776102]
[1738771878890,3.2078,2756.9,2756.8,0.42776102]
[1738771879089,3.2078,2757.2,2756.8,0.42776102]
[1738771879295,3.2078,2757.2,2756.9,0.97561065]
[1738771879496,3.2078,2757.2,2757.0,0.97612189]
[1738771879689,3.2078,2757.2,2757.1,0.42776102]
[1738771879888,3.2078,2757.2,2757.1,0.42770185]
[1738771880089,3.2078,2757.2,2756.7,0.00543331]
[1738771880292,3.2078,2757.2,2756.8,0.97587231]
[1738771880491,0.00543331,2757.3,2756.9,0.97587231]
[1738771880695,0.29393354,2758.4,2757.1,3.2078]
[1738771880898,1.81139,2759.4,2757.4,3.2078]
[1738771880899,6.5857034,2758.9,2757.4,3.2078]
[1738771881204,3.2078,2758.9,2758.1,3.2078]
[1738771881392,3.2078,2758.9,2758.2,0.97587231]
[1738771881597,3.2078,2759.2,2758.3,4.18367231]
[1738771881797,3.2078,2759.5,2758.4,0.97587231]
[1738771882111,3.21323331,2758.8,2758.5,0.97587231]
[1738771882407,0.00543331,2758.8,2758.6,0.97587231]
[1738771882607,3.2078,2759.5,2758.7,0.97587231]
[1738771882901,3.2078,2759.5,2758.8,4.18367231]
[1738771883104,0.72464,2759.0,2758.9,0.97587231]
[1738771883299,7.3103434,2759.0,2758.9,0.4273714]
[1738771883504,12.3103434,2759.0,2758.9,0.4273714]
[1738771883706,0.72474,2758.7,2758.3,0.00543331]
[1738771884003,3.2078,2758.5,2758.4,0.97896163]
[1738771884199,3.93257,2758.5,2758.4,0.97896163]
[1738771884395,3.2078,2758.5,2758.4,0.97896163]
[1738771884601,3.2078,2758.9,2758.4,0.97896163]
[1738771884795,3.93783331,2759.2,2758.5,0.97896163]
[1738771884999,3.21323331,2759.2,2758.6,0.97896163]
[1738771885196,0.00543331,2759.2,2758.7,0.97896163]
[1738771885501,0.00543331,2759.2,2758.8,0.42895442]
[1738771885706,0.00543331,2759.2,2758.9,0.97917637]
[1738771885894,0.00543331,2759.2,2758.3,0.00543331]
[1738771885895,0.00543331,2759.2,2759.0,0.97917637]
[1738771886100,0.00543331,2759.2,2759.1,0.97968932]
[1738771886404,3.21323331,2759.2,2759.1,0.97968932]
[1738771886601,8.93782331,2759.2,2759.1,0.42895442]
[1738771886810,8.21323331,2759.2,2758.3,0.00543331]
[1738771887106,3.2078,2758.5,2758.3,0.00543331]
[1738771887407,0.7248,2758.4,2758.3,0.00543331]
[1738771887599,1.446,2758.4,2758.3,0.00543331]
[1738771887801,6.446,2758.4,2758.3,0.00543331]
[1738771888301,0.72507,2757.4,2756.8,0.688]
[1738771888495,3.3779034,2757.7,2756.9,0.55147579]
[1738771888698,5.75476,2757.8,2756.8,0.688]
[1738771888905,0.72499,2757.7,2756.9,0.55147157]
[1738771889104,5.0298,2757.8,2757.0,0.55147157]
[1738771889304,0.72499,2757.7,2757.1,0.55147157]
[1738771889505,0.73042331,2757.7,2757.2,0.55147157]
[1738771889703,0.72506,2757.4,2757.3,0.55147157]
[1738771890603,3.2078,2757.5,2757.1,0.00543331]
[1738771891307,3.2078,2757.2,2757.1,0.00543331]
[1738771891502,3.2078,2757.5,2757.1,0.00543331]
[1738771891703,4.10832671,2757.7,2757.1,0.00543331]
[1738771891704,0.00543331,2757.7,2757.1,0.00543331]
[1738771891905,0.00543331,2757.7,2757.4,3.2078]
[1738771892305,3.3779034,2758.5,2757.5,1.26915326]
[1738771892502,3.2078,2758.3,2757.6,4.47695326]
[1738771892809,3.2078,2758.3,2757.1,0.00543331]
[1738771892810,3.2078,2758.0,2757.2,3.2078]
[1738771893008,3.93272,2758.0,2757.3,1.26921434]
[1738771893207,3.93272,2758.0,2757.1,0.00543331]
[1738771893408,3.2078,2758.0,2757.3,3.2078]
[1738771893606,0.00543331,2757.9,2757.4,1.26934062]
[1738771893805,0.00543331,2757.9,2757.3,3.2078]
[1738771893806,0.00543331,2757.9,2757.6,3.2078]
[1738771894000,0.00543331,2757.9,2757.7,1.26934062]
[1738771894203,0.00543331,2757.9,2757.8,1.26908815]
[1738771894604,0.73036331,2757.9,2757.8,1.26908815]
[1738771894805,0.00543331,2757.9,2757.3,3.2078]
[1738771895010,0.00543331,2757.9,2757.4,1.26930377]
[1738771895011,0.72496,2757.8,2757.4,1.26930377]
[1738771895208,0.00543331,2757.9,2757.5,1.26938697]
[1738771895411,0.00543331,2757.9,2757.6,1.26938697]
[1738771895609,0.00543331,2757.9,2757.7,1.26930693]
[1738771895811,0.00543331,2757.9,2757.1,0.00543331]
[1738771896012,0.00543331,2757.9,2757.6,3.2078]
[1738771896208,3.2078,2758.7,2757.7,2.85569741]
[1738771896407,3.49916133,2758.8,2757.8,2.85569741]
[1738771896706,3.2078,2758.8,2757.9,2.85569741]
[1738771896915,3.2078,2758.8,2758.0,2.85569741]
[1738771897216,0.72474,2758.7,2758.1,2.85569741]
[1738771897407,0.00543331,2758.7,2758.2,2.85569741]
[1738771897607,2.56061578,2758.8,2758.3,3.5629148]
[1738771897909,1.809,2759.3,2757.7,0.7783]
[1738771897910,3.3779034,2759.3,2758.4,6.77069627]
[1738771898117,3.2078,2759.4,2758.5,3.56289627]
[1738771898310,0.7245,2759.6,2758.8,3.2078]
[1738771898510,3.2078,2759.4,2758.9,2.85543925]
[1738771898712,3.93242,2759.1,2759.0,1.26930856]
[1738771899016,3.2078,2759.1,2759.0,1.70417593]
[1738771899410,3.93242,2759.1,2759.0,1.70442279]
[1738771900207,3.2078,2759.1,2759.0,1.70442279]
[1738771900715,3.2078,2759.4,2759.0,1.70442279]
[1738771901010,3.2078,2759.4,2759.1,1.70442279]
[1738771901218,3.2078,2759.4,2758.9,0.00543331]
[1738771901219,3.3779034,2759.3,2759.2,1.69298197]
[1738771901517,4.1024634,2759.3,2759.2,0.42423265]
[1738771901705,0.00543331,2759.5,2759.2,2.24267442]
[1738771901911,0.00543331,2759.5,2759.3,2.24267442]
[1738771902212,0.00543331,2759.5,2759.4,3.82834196]
[1738771902511,0.29122547,2759.9,2759.4,3.82834196]
[1738771902512,0.72442,2759.9,2759.4,3.82834196]
[1738771902716,0.72444,2759.8,2759.5,1.6930194]
[1738771902918,0.72444,2759.8,2759.6,1.6930194]
[1738771903117,0.72444,2759.8,2759.2,3.2078]
[1738771903118,0.72444,2759.8,2759.7,1.6930194]
[1738771903315,4.1023434,2759.8,2759.7,0.42423265]
[1738771903513,0.72446,2759.7,2758.9,0.00543331]
[1738771903714,3.2078,2759.3,2759.0,1.25661708]
[1738771903912,3.2078,2759.3,2758.7,3.2078]
[1738771904112,3.3779034,2759.4,2758.8,1.25665911]
[1738771904113,3.2078,2759.0,2758.8,1.25665911]
[1738771904414,3.2078,2759.0,2758.9,1.25655353]
[1738771904619,3.3779034,2759.4,2758.9,1.25655353]
[1738771904810,3.3779034,2759.4,2759.0,1.25655353]
[1738771905008,3.3779034,2759.4,2758.6,3.2078]
[1738771905215,0.72471,2758.8,2758.7,1.25651931]
[1738771905410,3.2078,2758.8,2758.7,0.00543331]
[1738771905614,3.2078,2758.8,2757.9,0.7786]
[1738771905815,3.3779034,2758.2,2758.0,1.25663807]
[1738771906120,0.72492,2758.0,2757.0,3.2078]
[1738771906418,3.3779034,2758.2,2757.1,1.256955]
[1738771906716,6.5857034,2758.2,2757.5,3.2078]
[1738771906921,0.00543331,2757.9,2757.6,3.28611365]
[1738771907214,0.00543331,2757.9,2757.8,3.2078]
[1738771907421,0.00543331,2757.9,2757.8,3.28611365]
[1738771907612,0.00543331,2757.9,2757.8,0.55181363]
[1738771907812,0.00543331,2757.9,2757.4,0.00543331]
[1738771908012,0.00543331,2757.9,2757.5,1.25722552]
[1738771908317,0.00543331,2757.9,2757.6,1.25722552]
[1738771908521,0.00543331,2757.9,2757.7,4.46502552]
[1738771908720,0.00543331,2757.9,2757.8,1.95782371]
[1738771909218,3.3779034,2758.6,2757.8,1.95782371]
[1738771909413,3.3779034,2758.6,2757.9,1.95782371]
[1738771909619,0.72482,2758.4,2758.0,1.95782371]
[1738771909823,6.5857034,2758.6,2757.4,0.00543331]
[1738771909824,0.72479,2758.5,2758.1,2.50924964]
[1738771910012,6.5857034,2758.6,2758.2,2.50924964]
[1738771910317,3.3779034,2759.0,2758.4,3.2078]
[1738771910522,0.00543331,2758.7,2758.5,4.09532108]
[1738771910714,0.00543331,2758.7,2758.6,4.09531944]
[1738771910918,1.795,2759.3,2758.6,4.09531944]
[1738771911115,0.8242,2760.1,2759.2,3.2078]
[1738771911328,0.8242,2760.1,2759.3,4.09552315]
[1738771911517,0.8242,2760.1,2759.4,4.09503795]
[1738771911817,3.2078,2759.9,2759.5,2.50945335]
[1738771912133,4.1023534,2759.8,2759.6,2.50945335]
[1738771912324,4.1023534,2759.8,2759.7,2.50945335]
[1738771912625,4.1023534,2759.8,2759.7,1.25222783]
[1738771912828,9.1023534,2759.8,2759.7,1.25222783]
[1738771913319,9.1023534,2759.8,2759.7,0.55141472]
[1738771913620,0.72458,2759.3,2758.6,3.2078]
[1738771913819,3.3779034,2759.3,2758.7,1.26873158]
[1738771914121,17.2297719,2759.3,2758.8,1.26873158]
[1738771914420,17.2297719,2759.3,2758.9,1.26873158]
[1738771914421,0.72463,2759.1,2758.9,1.26873158]
[1738771914617,0.72476,2758.6,2758.0,0.815]
[1738771914817,3.3779034,2758.8,2758.1,1.20887636]
[1738771915120,4.1026134,2758.8,2758.2,1.20885713]
[1738771915314,4.1026134,2758.8,2758.0,0.815]
[1738771915315,3.3779034,2758.8,2758.0,0.815]
[1738771915518,3.3779034,2758.8,2758.1,1.20892628]
[1738771915711,0.00543331,2758.7,2758.3,3.2078]
[1738771915915,0.00543331,2758.7,2758.4,1.63878162]
[1738771916116,0.00543331,2758.7,2758.2,0.00543331]
[1738771916117,0.72477,2758.6,2758.5,0.20665534]
[1738771916419,4.1026734,2758.6,2758.5,0.20665534]
[1738771916630,0.72483,2758.3,2758.2,0.00543331]
[1738771917320,5.0,2758.3,2757.1,3.2078]
[1738771917620,4.1030234,2757.2,2756.2,3.2078]
[1738771917817,3.2078,2757.7,2756.6,3.2078]
[1738771917818,3.3779034,2757.5,2756.6,3.2078]
[1738771918123,3.3779034,2757.5,2756.9,3.2078]
[1738771918422,3.3779034,2757.9,2757.0,3.76352825]
[1738771918624,0.00543331,2757.5,2757.1,3.76352825]
[1738771918821,0.00543331,2757.5,2757.2,2.85666921]
[1738771919020,0.00543331,2757.5,2757.3,2.85666921]
[1738771919222,3.38333671,2757.5,2757.4,1.26963076]
[1738771919417,3.38333671,2757.5,2756.9,0.00543331]
[1738771919631,3.3779034,2757.0,2756.2,3.2078]
[1738771919825,3.2078,2756.8,2756.3,2.85718629]
[1738771920022,3.2078,2756.8,2756.4,2.85718629]
[1738771920322,5.1609034,2757.0,2756.5,2.85718629]
[1738771920628,3.3779034,2757.4,2756.9,3.2078]
[1738771920828,3.3779034,2757.4,2756.5,0.00543331]
[1738771921017,3.3779034,2757.4,2756.9,3.2078]
[1738771921524,3.3779034,2757.0,2756.5,0.00543331]
[1738771921826,3.2078,2756.8,2756.5,0.00543331]
[1738771922123,3.3779034,2756.6,2756.5,0.00543331]
[1738771922935,3.3779034,2757.0,2756.5,0.00543331]
[1738771923125,5.1549034,2757.0,2756.5,0.00543331]
[1738771923318,3.3779034,2756.6,2756.5,0.00543331]
[1738771923516,7.3109734,2756.6,2756.5,0.00543331]
[1738771923726,7.3109734,2756.6,2755.8,0.8007]
[1738771923925,6.5857034,2756.6,2755.8,0.8007]
[1738771924320,3.3779034,2756.6,2755.8,4.0085]
[1738771924629,6.5857034,2756.6,2755.8,4.0085]
[1738771925022,0.72531,2756.5,2755.9,0.00543331]
[1738771925224,7.3109934,2756.6,2755.9,0.00543331]
[1738771925427,6.5857034,2756.6,2755.9,0.00543331]
[1738771925724,3.2078,2756.6,2755.9,0.00543331]
[1738771926432,3.2078,2756.3,2755.9,0.00543331]
[1738771927526,2.49324,2756.8,2755.9,0.00543331]
[1738771927736,1.768,2756.8,2756.0,3.2078]
[1738771927929,1.768,2756.8,2755.9,0.00543331]
[1738771928330,3.2078,2756.9,2756.2,3.2078]
[1738771928522,0.00543331,2757.5,2755.9,0.00543331]
[1738771928523,3.3779034,2757.4,2756.5,3.2078]
[1738771928730,6.5857034,2757.4,2756.5,3.2078]
[1738771929225,7.3107834,2757.4,2756.5,3.2078]
[1738771929426,6.5857034,2757.4,2756.5,3.2078]
[1738771929626,0.00543331,2757.5,2756.5,3.2078]
[1738771929824,3.93827331,2757.5,2756.9,3.2078]
[1738771930036,3.21323331,2757.5,2756.9,3.2078]
[1738771930337,0.00543331,2757.5,2756.9,3.2078]
[1738771930535,3.21323331,2757.5,2756.9,3.2078]
[1738771931424,6.5857034,2758.6,2757.3,3.2078]
[1738771931625,6.5857034,2758.6,2758.0,3.2078]
[1738771932125,3.3779034,2758.6,2757.4,3.2078]
[1738771932729,0.00543331,2758.3,2757.7,3.21323331]
[1738771932924,3.21323331,2758.3,2757.7,0.00543331]
[1738771933125,0.00543331,2758.3,2757.7,0.00543331]
[1738771933329,3.2078,2758.0,2757.7,0.00543331]
[1738771933530,3.3779034,2757.8,2757.7,0.00543331]
[1738771933738,3.3779034,2757.8,2756.3,3.2078]
[1738771933936,3.3779034,2757.8,2756.2,1.5722]
[1738771933937,4.9698,2757.7,2756.6,3.2078]
[1738771934239,4.9698,2757.7,2756.4,4.70150411]
[1738771934438,3.2078,2757.1,2756.3,7.90930411]
[1738771934646,3.2078,2757.1,2756.3,3.2078]
[1738771934840,3.3779034,2757.4,2756.3,3.2078]
[1738771935039,3.3779034,2757.4,2756.4,0.00543331]
[1738771935335,6.5857034,2757.4,2756.4,0.00543331]
[1738771936134,3.2078,2757.4,2756.4,0.00543331]
[1738771936438,3.9327,2758.1,2757.0,3.2078]
[1738771936644,3.2078,2758.1,2757.0,3.2078]
[1738771936939,4.9638,2758.1,2757.0,3.2078]
[1738771937334,3.2078,2758.1,2757.0,3.2078]
[1738771937639,3.2078,2758.1,2757.4,3.2078]
[1738771938041,1.76243331,2758.3,2757.8,3.2078]
[1738771938042,0.00543331,2758.3,2757.8,3.2078]
[1738771938239,0.00543331,2758.3,2758.1,3.2078]
[1738771938435,16.15350426,2759.3,2758.2,0.8336]
[1738771939240,12.94570426,2759.3,2758.7,3.2078]
[1738771939437,12.94570426,2759.3,2758.4,3.2078]
[1738771939643,0.00543331,2759.0,2758.5,0.00543331]
[1738771939941,0.00543331,2759.0,2758.7,3.2078]
[1738771940442,6.59113671,2759.0,2758.5,0.00543331]
[1738771940935,3.3779034,2758.6,2756.8,3.2078]
[1738771941130,3.2078,2757.5,2756.8,3.2078]
[1738771941337,3.3779034,2757.4,2756.8,3.2078]
[1738771942137,3.38333671,2757.4,2756.8,3.21323331]
[1738771942835,3.2078,2757.1,2756.8,0.00543331]
[1738771943039,3.3779034,2757.0,2756.8,0.00543331]
[1738771943339,3.3779034,2757.0,2756.0,0.8127]
[1738771943641,6.5857034,2757.0,2756.0,0.8127]
[1738771944243,3.2078,2756.7,2756.0,0.8127]
[1738771944432,3.2078,2756.7,2755.7,4.0392]
[1738771944433,3.2078,2756.4,2755.7,0.8314]
[1738771944631,3.2078,2756.1,2755.2,3.2078]
[1738771944832,3.2078,2755.8,2754.9,3.2078]
[1738771945139,3.2078,2755.5,2754.9,3.2078]
[1738771945644,0.00544336,2755.6,2754.9,3.2078]
[1738771946742,3.2078,2755.5,2754.9,3.2078]
[1738771947336,3.2078,2755.5,2754.8,0.8156]
[1738771947533,3.2078,2755.2,2754.6,0.8245]
[1738771947739,3.3779034,2755.4,2754.8,3.2078]
[1738771947945,3.2078,2755.2,2754.6,0.8245]
[1738771948644,3.2078,2755.2,2754.2,3.2078]
[1738771949150,3.3779034,2755.4,2754.2,3.2078]
[1738771949659,0.00544336,2755.6,2753.1,3.2078]
[1738771949660,3.2078,2754.3,2753.1,3.2078]
[1738771949836,3.3779034,2754.1,2753.1,3.2078]
[1738771950144,0.00544336,2753.9,2753.4,3.2078]
[1738771950538,6.5857034,2754.9,2753.7,3.2078]
[1738771950846,6.5857034,2754.9,2753.8,3.2078]
[1738771951145,3.2078,2754.5,2753.8,3.2078]
[1738771951441,3.2078,2754.5,2753.5,0.7881]
[1738771951442,3.3779034,2754.1,2753.7,3.2078]
[1738771952344,3.19041685,2753.9,2753.4,0.00544336]
[1738771952543,6.5857034,2754.1,2753.4,0.00544336]
[1738771952743,6.5857034,2754.1,2753.5,3.2078]
[1738771953549,3.3779034,2754.1,2753.4,0.00544336]
[1738771953739,4.95324336,2754.4,2753.7,3.2078]
[1738771954844,0.00544336,2754.4,2753.7,3.2078]
[1738771955144,1.8134,2756.3,2753.7,3.2078]
[1738771955145,5.1159034,2755.3,2754.1,3.2078]
[1738771955349,3.2078,2754.4,2753.8,0.9134]
[1738771956344,3.21324336,2754.4,2753.8,0.9134]
[1738771956543,3.2078,2753.9,2753.4,0.00544336]
[1738771956747,3.21324336,2754.4,2753.7,3.2078]
[1738771956940,3.2078,2754.1,2753.6,3.2078]
[1738771957544,3.21324336,2754.4,2753.6,3.2078]
[1738771957844,3.93909336,2754.4,2753.6,3.2078]
[1738771958045,3.21324336,2754.4,2753.6,3.2078]
[1738771959144,0.00544336,2754.4,2754.0,3.2078]
[1738771959442,0.00544336,2754.4,2754.3,3.2078]
[1738771959837,1.738,2755.4,2754.3,8.2078]
[1738771960050,3.2078,2755.6,2754.8,3.2078]
[1738771960245,3.3779034,2755.3,2754.5,3.2078]
[1738771960444,3.2078,2754.9,2754.0,3.2078]
[1738771961049,3.2078,2754.5,2754.0,3.2078]
[1738771961249,3.2078,2754.5,2754.2,0.00544336]
[1738771963744,1.74144336,2754.7,2754.2,0.00544336]
[1738771963950,0.00544336,2754.7,2754.2,0.00544336]
[1738771964147,0.00544336,2754.7,2754.2,3.21324336]
[1738771964348,0.00544336,2754.7,2754.2,0.00544336]
[1738771964947,3.2078,2754.4,2754.2,0.00544336]
[1738771965341,3.21324336,2754.7,2754.2,3.21324336]
[1738771965546,0.00544336,2754.7,2754.2,3.21324336]
[1738771965747,3.2078,2755.7,2754.6,3.2078]
[1738771966048,3.2078,2756.2,2755.5,3.2078]
[1738771966446,3.3779034,2756.5,2755.2,3.2078]
[1738771966447,3.2078,2755.9,2755.2,3.2078]
[1738771966748,3.2078,2755.6,2754.5,3.2078]
[1738771966941,0.72558,2755.5,2754.8,3.2078]
[1738771967147,0.72557,2755.5,2754.2,3.21324336]
[1738771967351,7.3113334,2755.3,2754.2,3.21324336]
[1738771967542,6.5857034,2755.3,2754.2,3.21324336]
[1738771968053,6.5857034,2755.7,2754.2,3.21324336]
[1738771968252,3.2078,2755.4,2754.2,3.21324336]
[1738771968458,3.93339,2755.4,2754.2,3.21324336]
[1738771968754,6.5857034,2755.7,2754.4,3.2078]
[1738771969155,3.2078,2755.4,2754.4,3.2078]
[1738771969355,3.2078,2755.4,2754.8,3.2078]
[1738771969558,3.2078,2755.4,2754.4,3.2078]
[1738771969749,3.2078,2755.4,2754.7,3.2078]
[1738771969948,3.2078,2755.4,2754.2,0.00544336]
[1738771969949,3.2078,2754.8,2754.2,0.00544336]
[1738771970445,3.2078,2755.5,2754.2,0.00544336]
[1738771970644,3.2078,2755.5,2754.5,3.2078]
[1738771971754,3.2078,2755.5,2754.9,3.2078]
[1738771972161,0.00544336,2755.8,2755.2,3.2078]
[1738771972658,0.00544336,2755.8,2755.3,0.908]
[1738771973059,0.00544336,2755.8,2755.2,3.2078]
[1738771973260,0.00544336,2755.8,2754.9,3.2078]
[1738771973854,3.2078,2755.5,2754.9,3.2078]
[1738771974656,1.717,2755.7,2754.9,3.2078]
[1738771974953,3.21324336,2755.8,2755.2,3.2078]
[1738771975649,0.00544336,2755.8,2755.3,3.2078]
[1738771975850,0.7301,2757.1,2755.3,3.2078]
[1738771975851,3.2078,2757.5,2755.7,3.9333]
[1738771976054,3.2078,2758.0,2756.8,3.2078]
[1738771976263,3.2078,2758.4,2757.1,3.2078]
[1738771976565,5.9841034,2758.5,2757.4,3.2078]
[1738771976858,2.6062,2758.5,2757.7,3.2078]
[1738771977063,0.00544336,2758.2,2757.7,3.21324336]
[1738771978264,0.00544336,2758.2,2758.1,3.2078]
[1738771979055,0.00544336,2758.2,2758.1,8.2078]
[1738771979266,0.00544336,2758.2,2758.1,3.2078]
[1738771981158,0.00544336,2758.2,2757.7,0.00544336]
[1738771981360,0.00544336,2758.2,2757.7,3.21324336]
[1738771982164,3.2078,2758.0,2757.7,0.00544336]
[1738771982364,3.3779034,2757.8,2756.8,3.2078]
[1738771982669,0.00544336,2758.2,2757.5,3.2078]
[1738771982968,0.00544336,2758.2,2758.1,3.2078]
[1738771984574,0.00544336,2758.2,2758.1,8.2078]
[1738771984762,3.2078,2759.5,2758.1,17.4434517]
[1738771984964,0.8781,2760.1,2759.0,3.2078]
[1738771985467,14.9757408,2760.2,2759.8,3.2078]
[1738771985859,14.9757408,2760.2,2759.8,8.2078]
[1738771986063,14.9757408,2760.2,2760.1,3.2078]
[1738771986265,7.8417408,2760.2,2760.1,3.2078]
[1738771986464,7.8417408,2760.2,2759.7,0.00544336]
[1738771986862,7.8417408,2760.2,2759.9,3.2078]
[1738771987170,7.8417408,2760.2,2759.7,0.00544336]
[1738771987365,7.8417408,2760.2,2759.8,3.2078]
[1738771988067,0.00544336,2760.3,2759.7,0.00544336]
[1738771990668,3.3779034,2759.8,2758.6,3.2078]
[1738771990869,1.724,2759.7,2758.6,3.2078]
[1738771991061,2.5892,2759.7,2758.6,3.2078]
[1738771991465,3.2078,2759.2,2758.1,3.2078]
[1738771991667,3.2078,2758.3,2757.7,3.2078]
[1738771992474,0.00544336,2758.3,2757.7,3.21324336]
[1738771992968,3.3779034,2758.2,2757.7,0.00544336]
[1738771993163,3.3779034,2757.8,2756.9,3.2078]
[1738771993369,3.2078,2757.2,2756.5,3.2078]
[1738771993570,3.3779034,2757.4,2756.5,3.2078]
[1738771993775,3.3779034,2757.4,2756.8,3.2078]
[1738771993976,3.2078,2757.6,2756.9,3.2078]
[1738771994473,3.2078,2757.6,2756.1,4.71053264]
[1738771994474,0.00544336,2757.5,2757.0,0.00544336]
[1738771994975,3.2078,2757.3,2757.0,0.00544336]
[1738771995172,0.00544336,2757.5,2757.0,0.00544336]
[1738771995774,3.3779034,2757.4,2757.0,0.00544336]
[1738771996068,0.00544336,2757.5,2757.0,0.00544336]
[1738771996674,3.2078,2757.2,2757.0,0.00544336]
[1738771996870,3.21324336,2757.5,2757.0,0.00544336]